fUSD/lending_fUSD_20240516
["ID","MTS","AMOUNT","RATE_DAILY","PERIOD"]
[327177541,1715879454584,-1518.01,0.00010977,2]
[327177542,1715879454594,-1518.01,0.00010977,2]
[327177543,1715879454605,-1518.01,0.00010977,2]
[327177544,1715879454615,-1518.01,0.00010977,2]
[327177545,1715879454625,-1518.01,0.00010977,2]
[327177546,1715879454634,-1518.01,0.00010977,2]
[327177547,1715879454644,-1518.01,0.00010977,2]
[327177548,1715879454653,-1518.01,0.00010977,2]
[327177549,1715879454664,-500.0,0.00010977,2]
[327177550,1715879454673,-1518.01,0.00010977,2]
[327177551,1715879454682,-500.0,0.00010977,2]
[327177552,1715879454691,-178.30975477,0.00010977,2]
[327177553,1715879454700,-500.0,0.00010977,2]
[327177554,1715879454710,-384.62,0.00010977,2]
[327177555,1715879454719,-500.0,0.00010977,2]
[327177556,1715879454729,-500.0,0.00010977,2]
[327177557,1715879454738,-296.40077759,0.00010977,2]
[327177558,1715879454973,-203.59922241,0.00010977,2]
[327177559,1715879454983,-500.0,0.00010977,2]
[327177560,1715879454993,-500.0,0.00010977,2]
[327177561,1715879455002,-151.0,0.00010977,2]
[327177562,1715879455012,-151.0,0.00010977,2]
[327177563,1715879455022,-500.0,0.00010977,2]
[327177564,1715879455031,-151.0,0.00010977,2]
[327177565,1715879455041,-500.0,0.00010977,2]
[327177566,1715879455050,-151.0,0.00010977,2]
[327177567,1715879455059,-151.0,0.00010977,2]
[327177568,1715879455070,-151.0,0.00010977,2]
[327177569,1715879455079,-500.0,0.00010977,2]
[327177570,1715879455089,-151.0,0.00010977,2]
[327177571,1715879455098,-500.0,0.00010977,2]
[327177572,1715879455107,-500.0,0.00010977,2]
[327177573,1715879455117,-500.0,0.00010977,2]
[327177574,1715879455127,-500.0,0.00010977,2]
[327177575,1715879455136,-151.0,0.00010977,2]
[327177576,1715879455145,-500.0,0.00010977,2]
[327177577,1715879455156,-500.0,0.00010977,2]
[327177578,1715879455169,-500.0,0.00010977,2]
[327177579,1715879455178,-500.0,0.00010977,2]
[327177580,1715879455188,-12715.55,0.00010977,2]
[327177581,1715879455198,-12715.55,0.00010977,2]
[327177582,1715879455208,-12715.55,0.00010977,2]
[327177583,1715879455217,-12715.55,0.00010977,2]
[327177584,1715879455227,-12715.55,0.00010977,2]
[327177585,1715879455237,-12715.55,0.00010977,2]
[327177586,1715879455246,-12715.55,0.00010977,2]
[327177587,1715879455257,-265.953467,0.00010977,2]
[327177588,1715879455266,-12715.55,0.00010977,2]
[327177589,1715879455276,-12715.55,0.00010977,2]
[327177590,1715879455285,-12715.55,0.00010977,2]
[327177591,1715879455295,-500.0,0.00010977,2]
[327177592,1715879455305,-334.2,0.00010977,2]
[327177593,1715879455316,-151.0,0.00010977,2]
[327177594,1715879455326,-151.0,0.00010977,2]
[327177595,1715879455336,-151.0,0.00010977,2]
[327177596,1715879455346,-500.0,0.00010977,2]
[327177597,1715879455355,-520.12374096,0.00010977,2]
[327177598,1715879455365,-738.52,0.00010977,2]
[327177599,1715879455374,-738.52,0.00010977,2]
[327177600,1715879455384,-500.0,0.00010977,2]
[327177601,1715879455393,-738.52,0.00010977,2]
[327177602,1715879455403,-738.52,0.00010977,2]
[327177603,1715879455413,-738.52,0.00010977,2]
[327177604,1715879455423,-738.52,0.00010977,2]
[327177605,1715879455432,-738.52,0.00010977,2]
[327177606,1715879455441,-738.52,0.00010977,2]
[327177607,1715879455451,-738.52,0.00010977,2]
[327177608,1715879455460,-151.0,0.00010977,2]
[327177609,1715879455470,-151.0,0.00010977,2]
[327177610,1715879455480,-151.0,0.00010977,2]
[327177611,1715879455490,-577.55,0.00010977,2]
[327177612,1715879455500,-577.55,0.00010977,2]
[327177613,1715879455509,-577.55,0.00010977,2]
[327177614,1715879455519,-577.55,0.00010977,2]
[327177615,1715879455528,-577.55,0.00010977,2]
[327177616,1715879455538,-577.55,0.00010977,2]
[327177617,1715879455547,-577.55,0.00010977,2]
[327177618,1715879455556,-577.55,0.00010977,2]
[327177619,1715879455568,-577.55,0.00010977,2]
[327177620,1715879455577,-577.55,0.00010977,2]
[327177621,1715879455587,-4592.51,0.00010977,2]
[327177622,1715879455597,-4592.51,0.00010977,2]
[327177623,1715879455608,-4592.51,0.00010977,2]
[327177624,1715879455618,-4592.51,0.00010977,2]
[327177625,1715879455629,-4592.51,0.00010977,2]
[327177626,1715879455639,-4592.51,0.00010977,2]
[327177627,1715879455648,-4592.51,0.00010977,2]
[327177628,1715879455658,-4592.51,0.00010977,2]
[327177629,1715879455668,-4592.51,0.00010977,2]
[327177630,1715879455678,-4592.51,0.00010977,2]
[327177631,1715879455688,-220.99188888,0.00010977,2]
[327177632,1715879455697,-500.0,0.00010977,2]
[327177633,1715879455707,-500.0,0.00010977,2]
[327177634,1715879455717,-500.0,0.00010977,2]
[327177635,1715879455727,-268.36416146,0.00010977,2]
[327177636,1715879455737,-500.0,0.00010977,2]
[327177637,1715879455746,-500.0,0.00010977,2]
[327177638,1715879455756,-500.0,0.00010977,2]
[327177639,1715879455766,-500.0,0.00010977,2]
[327177640,1715879455776,-500.0,0.00010977,2]
[327177641,1715879455786,-500.0,0.00010977,2]
[327177642,1715879455796,-500.0,0.00010977,2]
[327177643,1715879455806,-500.0,0.00010977,2]
[327177644,1715879455818,-500.0,0.00010977,2]
[327177645,1715879455827,-500.0,0.00010977,2]
[327177646,1715879455836,-500.0,0.00010977,2]
[327177647,1715879455846,-431.23,0.00010977,2]
[327177648,1715879455855,-500.0,0.00010977,2]
[327177649,1715879455864,-500.0,0.00010977,2]
[327177650,1715879455874,-500.0,0.00010977,2]
[327177651,1715879455883,-500.0,0.00010977,2]
[327177652,1715879455893,-500.0,0.00010977,2]
[327177653,1715879455902,-164.76,0.00010977,2]
[327177654,1715879455912,-500.0,0.00010977,2]
[327177655,1715879455921,-500.0,0.00010977,2]
[327177656,1715879455931,-500.0,0.00010977,2]
[327177657,1715879455940,-411.76,0.00010977,2]
[327177658,1715879455950,-151.0,0.00010977,2]
[327177659,1715879455960,-500.0,0.00010977,2]
[327177660,1715879455970,-500.0,0.00010977,2]
[327177661,1715879455979,-500.0,0.00010977,2]
[327177662,1715879455989,-500.0,0.00010977,2]
[327177663,1715879455998,-500.0,0.00010977,2]
[327177664,1715879456008,-500.0,0.00010977,2]
[327177665,1715879456018,-500.0,0.00010977,2]
[327177666,1715879456027,-500.0,0.00010977,2]
[327177667,1715879456037,-500.0,0.00010977,2]
[327177668,1715879456046,-500.0,0.00010977,2]
[327177669,1715879456057,-500.0,0.00010977,2]
[327177670,1715879456069,-500.0,0.00010977,2]
[327177671,1715879456079,-500.0,0.00010977,2]
[327177672,1715879456089,-500.0,0.00010977,2]
[327177673,1715879456099,-500.0,0.00010977,2]
[327177674,1715879456109,-160.59236176,0.00010977,2]
[327177675,1715879456118,-500.0,0.00010977,2]
[327177676,1715879456128,-500.0,0.00010977,2]
[327177677,1715879456137,-500.0,0.00010977,2]
[327177678,1715879456147,-500.0,0.00010977,2]
[327177679,1715879456158,-500.0,0.00010977,2]
[327177680,1715879456167,-500.0,0.00010977,2]
[327177681,1715879456176,-500.0,0.00010977,2]
[327177682,1715879456185,-500.0,0.00010977,2]
[327177683,1715879456195,-474.15378749,0.00010977,2]
[327177684,1715879456204,-500.0,0.00010977,2]
[327177685,1715879456213,-500.0,0.00010977,2]
[327177686,1715879456223,-509.92,0.00010977,2]
[327177687,1715879456234,-151.0,0.00010977,2]
[327177688,1715879456243,-500.0,0.00010977,2]
[327177689,1715879456253,-500.0,0.00010977,2]
[327177690,1715879456263,-500.0,0.00010977,2]
[327177691,1715879456272,-500.0,0.00010977,2]
[327177692,1715879456281,-500.0,0.00010977,2]
[327177693,1715879456290,-500.0,0.00010977,2]
[327177694,1715879456299,-500.0,0.00010977,2]
[327177695,1715879456308,-500.0,0.00010977,2]
[327177696,1715879456318,-500.0,0.00010977,2]
[327177697,1715879456328,-500.0,0.00010977,2]
[327177698,1715879456338,-565.84,0.00010977,2]
[327177699,1715879456348,-565.84,0.00010977,2]
[327177700,1715879456356,-565.84,0.00010977,2]
[327177701,1715879456366,-565.84,0.00010977,2]
[327177702,1715879456375,-565.84,0.00010977,2]
[327177703,1715879456384,-565.84,0.00010977,2]
[327177704,1715879456394,-500.0,0.00010977,2]
[327177705,1715879456403,-565.84,0.00010977,2]
[327177706,1715879456412,-500.0,0.00010977,2]
[327177707,1715879456421,-565.84,0.00010977,2]
[327177708,1715879456431,-500.0,0.00010977,2]
[327177709,1715879456441,-565.84,0.00010977,2]
[327177710,1715879456450,-529.79065323,0.00010977,2]
[327177711,1715879456460,-565.84,0.00010977,2]
[327177712,1715879456469,-500.0,0.00010977,2]
[327177713,1715879456479,-299.95,0.00010977,2]
[327177714,1715879456488,-500.0,0.00010977,2]
[327177715,1715879456498,-500.0,0.00010977,2]
[327177716,1715879456507,-500.0,0.00010977,2]
[327177717,1715879456516,-500.0,0.00010977,2]
[327177718,1715879456525,-500.0,0.00010977,2]
[327177719,1715879456534,-500.0,0.00010977,2]
[327177720,1715879456543,-500.0,0.00010977,2]
[327177721,1715879456553,-151.0,0.00010977,2]
[327177722,1715879456565,-151.0,0.00010977,2]
[327177723,1715879456574,-525.97763824,0.00010977,2]
[327177724,1715879456583,-1622.41,0.00010977,2]
[327177725,1715879456592,-1622.41,0.00010977,2]
[327177726,1715879456601,-151.0,0.00010977,2]
[327177727,1715879456610,-1622.41,0.00010977,2]
[327177728,1715879456620,-1622.41,0.00010977,2]
[327177729,1715879456630,-1622.41,0.00010977,2]
[327177730,1715879456641,-1622.41,0.00010977,2]
[327177731,1715879456651,-1234.96200984,0.00010977,2]
[327177732,1715879457759,-387.44799016,0.00010977,2]
[327177733,1715879457769,-500.0,0.00010977,2]
[327177734,1715879457778,-1133.24730227,0.00010977,2]
[327177735,1715879457789,-489.16269773,0.00010977,2]
[327177736,1715879457798,-47.25567509,0.00010977,2]
[327177737,1715879457948,-636.17004861,0.00010977,2]
[327177738,1715879457960,-938.9842763,0.00010977,2]
[327177739,1715879457969,-500.0,0.00010977,2]
[327177740,1715879458144,-500.0,0.00010977,2]
[327177741,1715879458158,-500.0,0.00010977,2]
[327177742,1715879458168,-500.0,0.00010977,2]
[327177743,1715879458177,-89.0407237,0.00010977,2]
[327177744,1715879458188,-410.9592763,0.00010977,2]
[327177745,1715879458198,-644.85,0.00010977,2]
[327177746,1715879458208,-500.0,0.00010977,2]
[327177747,1715879458217,-500.0,0.00010977,2]
[327177748,1715879458226,-500.0,0.00010977,2]
[327177749,1715879458238,-151.0,0.00010977,2]
[327177750,1715879458248,-151.0,0.00010977,2]
[327177751,1715879458258,-151.0,0.00010977,2]
[327177752,1715879458267,-500.0,0.00010977,2]
[327177753,1715879458277,-500.0,0.00010977,2]
[327177754,1715879458286,-500.0,0.00010977,2]
[327177755,1715879458296,-491.1907237,0.00010977,2]
[327177756,1715879458322,-8.8092763,0.00010977,2]
[327177757,1715879458331,-1531.03,0.00010977,2]
[327177758,1715879458341,-500.0,0.00010977,2]
[327177759,1715879458351,-1531.03,0.00010977,2]
[327177760,1715879458360,-500.0,0.00010977,2]
[327177761,1715879458370,-500.0,0.00010977,2]
[327177762,1715879458380,-500.0,0.00010977,2]
[327177763,1715879458390,-1531.03,0.00010977,2]
[327177764,1715879458399,-500.0,0.00010977,2]
[327177765,1715879458409,-1531.03,0.00010977,2]
[327177766,1715879458419,-500.0,0.00010977,2]
[327177767,1715879458428,-1531.03,0.00010977,2]
[327177768,1715879458438,-1531.03,0.00010977,2]
[327177769,1715879458448,-1531.03,0.00010977,2]
[327177770,1715879458457,-1205.32095912,0.00010977,2]
[327177771,1715879458469,-325.70904088,0.00010977,2]
[327177772,1715879458479,-1531.03,0.00010977,2]
[327177773,1715879458488,-1531.03,0.00010977,2]
[327177774,1715879458498,-500.0,0.00010977,2]
[327177775,1715879458507,-500.0,0.00010977,2]
[327177776,1715879458517,-500.0,0.00010977,2]
[327177777,1715879458526,-500.0,0.00010977,2]
[327177778,1715879458536,-500.0,0.00010977,2]
[327177779,1715879458548,-500.0,0.00010977,2]
[327177780,1715879458559,-500.0,0.00010977,2]
[327177781,1715879458568,-500.0,0.00010977,2]
[327177782,1715879458578,-151.0,0.00010977,2]
[327177783,1715879458587,-500.0,0.00010977,2]
[327177784,1715879458596,-500.0,0.00010977,2]
[327177785,1715879458605,-500.0,0.00010977,2]
[327177786,1715879458614,-500.0,0.00010977,2]
[327177787,1715879458624,-500.0,0.00010977,2]
[327177788,1715879458634,-500.0,0.00010977,2]
[327177789,1715879458646,-500.0,0.00010977,2]
[327177790,1715879458655,-298.45,0.00010977,2]
[327177791,1715879458664,-500.0,0.00010977,2]
[327177792,1715879458673,-500.0,0.00010977,2]
[327177793,1715879458683,-500.0,0.00010977,2]
[327177794,1715879458693,-500.0,0.00010977,2]
[327177795,1715879458703,-500.0,0.00010977,2]
[327177796,1715879458713,-500.0,0.00010977,2]
[327177797,1715879458724,-500.0,0.00010977,2]
[327177798,1715879458734,-500.0,0.00010977,2]
[327177799,1715879458744,-500.0,0.00010977,2]
[327177800,1715879458755,-500.0,0.00010977,2]
[327177801,1715879458765,-491.64256342,0.00010977,2]
[327177802,1715879458776,-500.0,0.00010977,2]
[327177803,1715879458786,-500.0,0.00010977,2]
[327177804,1715879458796,-500.0,0.00010977,2]
[327177805,1715879458807,-500.0,0.00010977,2]
[327177806,1715879458818,-503.48,0.00010977,2]
[327177807,1715879458828,-503.48,0.00010977,2]
[327177808,1715879458839,-503.48,0.00010977,2]
[327177809,1715879458850,-503.48,0.00010977,2]
[327177810,1715879458860,-503.48,0.00010977,2]
[327177811,1715879458869,-503.48,0.00010977,2]
[327177812,1715879458879,-503.48,0.00010977,2]
[327177813,1715879458888,-503.48,0.00010977,2]
[327177814,1715879458898,-503.48,0.00010977,2]
[327177815,1715879458907,-503.48,0.00010977,2]
[327177816,1715879458917,-500.0,0.00010977,2]
[327177817,1715879458927,-151.0,0.00010977,2]
[327177818,1715879458937,-500.0,0.00010977,2]
[327177819,1715879458946,-500.0,0.00010977,2]
[327177820,1715879458956,-500.0,0.00010977,2]
[327177821,1715879458965,-125.55027186,0.00010977,2]
[327177822,1715879458989,-374.44972814,0.00010977,2]
[327177823,1715879458998,-500.0,0.00010977,2]
[327177824,1715879459007,-500.0,0.00010977,2]
[327177825,1715879459016,-500.0,0.00010977,2]
[327177826,1715879459025,-244.71138186,0.00010977,2]
[327177827,1715879459112,-5479.09844086,0.00010502,2]
[327177828,1715879459149,-1055.41535122,0.00010502,2]
[327177829,1715879459163,-255.28861814,0.00010977,2]
[327177830,1715879459172,-500.0,0.00010977,2]
[327177831,1715879459182,-500.0,0.00010977,2]
[327177832,1715879459192,-2565.38,0.00010977,2]
[327177833,1715879459204,-2565.38,0.00010977,2]
[327177834,1715879459215,-2565.38,0.00010977,2]
[327177835,1715879459225,-2565.38,0.00010977,2]
[327177836,1715879459234,-2565.38,0.00010977,2]
[327177837,1715879459247,-2565.38,0.00010977,2]
[327177838,1715879459259,-204.74057862,0.00010977,2]
[327177839,1715879459270,-605.64563326,0.00010977,2]
[327177840,1715879459286,-1135.26069731,0.00010977,2]
[327177841,1715879459298,-619.73309081,0.00010977,2]
[327177842,1715879459307,-237.06248508,0.00010977,2]
[327177843,1715879459323,-260.04150882,0.00010977,2]
[327177844,1715879459335,-2068.2760061,0.00010977,2]
[327177845,1715879459344,-2565.38,0.00010977,2]
[327177846,1715879459354,-2565.38,0.00010977,2]
[327177847,1715879459364,-500.0,0.00010977,2]
[327177848,1715879459373,-434.37571517,0.00010977,2]
[327177849,1715879459598,-65.62428483,0.00010977,2]
[327177850,1715879459608,-500.0,0.00010977,2]
[327177851,1715879459617,-500.0,0.00010977,2]
[327177852,1715879459626,-154.9808262,0.00010977,2]
[327177853,1715879459636,-1860.86168627,0.00010977,2]
[327177854,1715879459648,-1891.79831373,0.00010977,2]
[327177855,1715879459657,-3752.66,0.00010977,2]
[327177856,1715879459666,-3752.66,0.00010977,2]
[327177857,1715879459676,-3649.68168627,0.00010977,2]
[327177858,1715879459838,366.93295971,8.219e-05,2]
[327177859,1715879462621,155.0,8.218e-05,2]
[327177861,1715879462934,3600.13420983,8.219e-05,2]
[327177862,1715879462962,277222.78284868,8.219e-05,2]
[327177863,1715879462987,127153.36068344,8.219e-05,2]
[327177865,1715879492985,150.0,8.219e-05,2]
[327177866,1715879493007,11.03,8.219e-05,2]
[327177870,1715880013430,150.0,8.219e-05,2]
[327177871,1715880013452,11.03,8.219e-05,2]
[327177879,1715880325537,-800.0,9.641e-05,2]
[327177880,1715880335854,-657.69,9.649e-05,2]
[327177884,1715880496315,-1198.02176159,9.666e-05,2]
[327177885,1715880568114,161.03,8.219e-05,2]
[327177911,1715880633670,-204.7855615,9.661e-05,2]
[327177912,1715880633680,-155.0,9.662e-05,2]
[327177913,1715880633691,-150.0,9.664e-05,2]
[327177914,1715880633700,-35350.68361235,9.665e-05,2]
[327177915,1715880633710,-10264.41823841,9.666e-05,2]
[327177916,1715880633720,-1895.25,9.677e-05,2]
[327177917,1715880633729,-250.0,9.699e-05,2]
[327177918,1715880633739,-10716.27041364,9.705e-05,2]
[327177919,1715880633921,-10252.36958636,9.705e-05,2]
[327177920,1715880633931,-554.28156734,9.712e-05,2]
[327177921,1715880633940,-554.28156735,9.712e-05,2]
[327177922,1715880633952,-250.0,9.712e-05,2]
[327177923,1715880633962,-972.62,9.751e-05,2]
[327177924,1715880633971,-3799.64,9.876e-05,2]
[327177925,1715880633981,-200.0,9.902e-05,2]
[327177926,1715880633991,-213.94,0.00010011,2]
[327177927,1715880634000,-476.19200871,0.00010398,2]
[327177928,1715880634011,-14729.0,0.00010408,2]
[327177929,1715880634021,-1296.85747937,0.00010426,2]
[327177930,1715880634032,-600.0,0.00010506,2]
[327177931,1715880634042,-300.0,0.00010773,2]
[327177932,1715880634052,-150.0,0.00010776,2]
[327177933,1715880634062,-2582.36350735,0.00010822,2]
[327177934,1715880634071,-800.0,0.00010846,2]
[327177935,1715880634080,-1650.1494,0.00010858,2]
[327177936,1715880634090,-10000.0,0.00010858,2]
[327177937,1715880634100,-1000.0,0.00010859,2]
[327177938,1715880634109,-1000.0,0.00010876,2]
[327177939,1715880634119,-209.19693991,0.00010876,2]
[327177941,1715880634128,-871.49537987,0.00010877,2]
[327177943,1715880634139,-871.49537986,0.00010878,2]
[327177945,1715880634148,-168.21427329,0.00010878,2]
[327177947,1715880634158,-164.5362797,0.00010878,2]
[327177949,1715880634167,-13357.52344029,0.00010878,2]
[327177951,1715880634179,-5015.98876682,0.00010878,2]
[327177953,1715880634191,-594.43319071,0.00010878,2]
[327177956,1715880634213,-2409.2806224,0.00010878,2]
[327177958,1715880634223,-209.1969399,0.00010878,2]
[327177960,1715880634232,-1843.91175312,0.00010878,2]
[327177962,1715880634241,-267.66177286,0.00010878,2]
[327177964,1715880634250,-871.49537986,0.00010878,2]
[327177966,1715880634262,-150.0,0.00010889,2]
[327177968,1715880634272,-186.71107273,0.00010917,2]
[327177970,1715880634281,-500.0,0.00010939,2]
[327177972,1715880634291,-500.0,0.0001094,2]
[327177974,1715880634301,-150.0,0.00010953,2]
[327177976,1715880634312,-636.23052873,0.00010958,2]
[327177978,1715880634322,-321.66441706,0.00010958,2]
[327177979,1715880634335,-196.52382674,0.00010958,2]
[327177980,1715880634345,-521.8496568,0.00010958,2]
[327177981,1715880634355,-525.60805119,0.00010958,2]
[327177982,1715880634365,-500.0,0.00010958,2]
[327177983,1715880634375,-269.08095286,0.00010958,2]
[327177984,1715880634385,-487.41423658,0.00010958,2]
[327177985,1715880634395,-500.0,0.00010958,2]
[327177986,1715880634405,-500.0,0.00010958,2]
[327177987,1715880634416,-500.0,0.00010958,2]
[327177988,1715880634427,-500.0,0.00010958,2]
[327177989,1715880634437,-201.99456913,0.00010958,2]
[327177990,1715880634449,-500.0,0.00010958,2]
[327177991,1715880634459,-161.49706034,0.00010958,2]
[327177992,1715880634469,-500.0,0.00010958,2]
[327177993,1715880634480,-500.0,0.00010958,2]
[327177994,1715880634491,-500.0,0.00010958,2]
[327177995,1715880634501,-500.0,0.00010958,2]
[327177996,1715880634514,-500.0,0.00010958,2]
[327177997,1715880634527,-451.32403023,0.00010958,2]
[327177998,1715880634538,-500.0,0.00010958,2]
[327177999,1715880634548,-500.0,0.00010958,2]
[327178001,1715880634558,-500.0,0.00010958,2]
[327178002,1715880634568,-500.0,0.00010958,2]
[327178003,1715880634578,-500.0,0.00010958,2]
[327178004,1715880634588,-500.0,0.00010958,2]
[327178005,1715880634599,-500.0,0.00010958,2]
[327178006,1715880634611,-500.0,0.00010958,2]
[327178007,1715880634621,-500.0,0.00010958,2]
[327178008,1715880634631,-500.0,0.00010958,2]
[327178009,1715880634641,-524.96871969,0.00010958,2]
[327178010,1715880634652,-500.0,0.00010958,2]
[327178011,1715880634662,-500.0,0.00010958,2]
[327178012,1715880634672,-500.0,0.00010958,2]
[327178013,1715880634682,-500.0,0.00010958,2]
[327178014,1715880634692,-501.59735102,0.00010958,2]
[327178015,1715880634701,-500.0,0.00010958,2]
[327178016,1715880634712,-500.0,0.00010958,2]
[327178017,1715880634722,-500.0,0.00010958,2]
[327178018,1715880634731,-500.0,0.00010958,2]
[327178019,1715880634741,-500.0,0.00010958,2]
[327178020,1715880634751,-500.0,0.00010958,2]
[327178021,1715880634764,-500.0,0.00010958,2]
[327178022,1715880634773,-282.06,0.00010958,2]
[327178023,1715880634783,-500.0,0.00010958,2]
[327178024,1715880634792,-500.0,0.00010958,2]
[327178025,1715880634802,-500.0,0.00010958,2]
[327178026,1715880634811,-500.0,0.00010958,2]
[327178027,1715880634820,-500.0,0.00010958,2]
[327178028,1715880634830,-500.0,0.00010958,2]
[327178029,1715880634840,-500.0,0.00010958,2]
[327178030,1715880634850,-500.0,0.00010958,2]
[327178031,1715880634861,-500.0,0.00010958,2]
[327178032,1715880634871,-500.0,0.00010958,2]
[327178033,1715880634881,-500.0,0.00010958,2]
[327178034,1715880634891,-500.0,0.00010958,2]
[327178035,1715880634902,-200.0,0.00010959,2]
[327178036,1715880634912,-200.0,0.00010959,2]
[327178037,1715880634922,-1000.0,0.00010959,2]
[327178038,1715880634932,-1000.0,0.00010959,2]
[327178039,1715880634942,-1000.0,0.00010959,2]
[327178040,1715880634953,-200.0,0.00010959,2]
[327178041,1715880634963,-5953.1,0.00010959,2]
[327178042,1715880634972,-1003.94,0.00010959,2]
[327178043,1715880634982,-7175.91,0.00010959,2]
[327178044,1715880634992,-513.27,0.00010959,2]
[327178045,1715880635001,-409.72,0.0001096,2]
[327178046,1715880635015,-409.72,0.00010965,2]
[327178047,1715880635024,-500.0,0.00010968,2]
[327178048,1715880635033,-500.0,0.00010968,2]
[327178049,1715880635043,-500.0,0.00010968,2]
[327178050,1715880635052,-500.0,0.00010968,2]
[327178051,1715880635062,-500.0,0.00010968,2]
[327178052,1715880635072,-500.0,0.00010968,2]
[327178053,1715880635082,-500.0,0.00010968,2]
[327178054,1715880635091,-133.17154542,0.00010968,2]
[327178055,1715880635109,-302.39961943,0.00010968,2]
[327178056,1715880635121,-182.88075021,0.00010968,2]
[327178057,1715880635131,-500.0,0.00010968,2]
[327178058,1715880635140,-500.0,0.00010968,2]
[327178059,1715880635150,-500.0,0.00010968,2]
[327178060,1715880635160,-500.0,0.00010968,2]
[327178061,1715880635170,-500.0,0.00010969,2]
[327178062,1715880635180,-205.40742611,0.00010969,2]
[327178063,1715880635400,-291.44373864,0.00010969,2]
[327178064,1715880635412,-3.14883525,0.00010969,2]
[327178065,1715880635423,-500.0,0.00010969,2]
[327178066,1715880635434,-500.0,0.00010969,2]
[327178067,1715880635443,-500.0,0.00010969,2]
[327178068,1715880635453,-500.0,0.00010969,2]
[327178069,1715880635463,-500.0,0.00010969,2]
[327178070,1715880635473,-500.0,0.00010969,2]
[327178071,1715880635482,-500.0,0.00010969,2]
[327178072,1715880635493,-500.0,0.00010969,2]
[327178073,1715880635502,-500.0,0.00010969,2]
[327178074,1715880635514,-500.0,0.00010969,2]
[327178075,1715880635524,-500.0,0.00010969,2]
[327178076,1715880635537,-500.0,0.00010969,2]
[327178077,1715880635546,-500.0,0.00010969,2]
[327178078,1715880635556,-328.0,0.00010969,2]
[327178079,1715880635566,-500.0,0.00010969,2]
[327178080,1715880635577,-500.0,0.00010969,2]
[327178081,1715880635587,-500.0,0.00010969,2]
[327178082,1715880635596,-500.0,0.00010969,2]
[327178083,1715880635607,-500.0,0.00010969,2]
[327178084,1715880635616,-500.0,0.00010969,2]
[327178085,1715880635626,-500.0,0.00010969,2]
[327178086,1715880635635,-500.0,0.00010969,2]
[327178087,1715880635645,-500.0,0.00010969,2]
[327178088,1715880635654,-500.0,0.00010969,2]
[327178089,1715880635663,-500.0,0.00010969,2]
[327178090,1715880635673,-1568.62,0.00010969,2]
[327178091,1715880635682,-500.0,0.00010969,2]
[327178092,1715880635692,-500.0,0.00010969,2]
[327178093,1715880635702,-500.0,0.00010969,2]
[327178094,1715880635712,-500.0,0.00010969,2]
[327178095,1715880635722,-500.0,0.00010969,2]
[327178096,1715880635732,-7677.37,0.00010969,2]
[327178097,1715880635741,-500.0,0.00010969,2]
[327178098,1715880635751,-589.35,0.00010969,2]
[327178099,1715880635764,-500.0,0.00010969,2]
[327178100,1715880635773,-500.0,0.00010969,2]
[327178101,1715880635783,-500.0,0.00010969,2]